bitfinex/quotes_ETHUSD_20250802
["timestamp","ask_amount","ask_price","bid_price","bid_amount"]
[1754120837781,0.4634,3517.7,3517.3,4.401]
[1754120837782,0.8936,3517.7,3517.3,4.401]
[1754120837981,0.8936,3517.7,3517.4,0.854485]
[1754120838181,0.8936,3517.7,3517.3,4.401]
[1754120838384,0.8936,3517.7,3517.3,0.83108]
[1754120838584,0.4634,3517.6,3517.2,4.401]
[1754120838782,0.4302,3517.7,3517.2,4.401]
[1754120838983,0.4634,3517.7,3517.2,4.8708]
[1754120839371,0.02327,3517.9,3517.2,0.4698]
[1754120839572,0.4634,3517.6,3516.8,0.4698]
[1754120839776,0.8936,3517.6,3517.0,3.0]
[1754120839965,0.8936,3517.6,3517.1,0.8725378]
[1754120840174,0.8936,3517.5,3516.9,5.255578]
[1754120840353,0.4634,3517.4,3516.9,0.854578]
[1754120840553,0.4634,3517.4,3516.7,4.4]
[1754120840765,0.4634,3517.4,3516.7,4.8634]
[1754120840997,0.4634,3517.4,3516.8,0.83332]
[1754120841490,0.4302,3517.3,3516.6,0.4698]
[1754120841789,0.4595,3517.4,3516.6,0.02843655]
[1754120841994,0.4595,3517.4,3516.7,0.4644]
[1754120842894,0.4328,3517.3,3516.5,3.4634]
[1754120843057,0.4328,3517.3,3516.3,0.4644]
[1754120843058,0.4595,3517.2,3516.3,0.4644]
[1754120843275,0.4328,3517.1,3516.3,0.4644]
[1754120843483,4.73527,3517.9,3516.3,0.4644]
[1754120843484,0.6019,3517.3,3516.8,0.1424]
[1754120843717,0.4595,3517.2,3516.8,0.1424]
[1754120844372,0.8923,3517.2,3516.6,0.4644]
[1754120844589,0.8923,3517.2,3516.6,1.77163257]
[1754120844803,0.8933,3517.2,3516.6,1.77163257]
[1754120845019,0.001,3517.2,3516.6,1.77163257]
[1754120845518,0.4605,3517.2,3516.6,1.77163257]
[1754120846612,0.4605,3517.2,3516.3,14.67642041]
[1754120846939,0.4328,3517.1,3516.3,19.54082041]
[1754120847223,0.4595,3517.0,3516.3,0.4644]
[1754120847818,0.4328,3517.1,3516.4,0.4661]
[1754120848016,0.001,3517.2,3516.4,0.9305]
[1754120848178,0.001,3517.2,3516.5,0.53305]
[1754120848374,0.001,3517.2,3516.5,0.99745]
[1754120848780,0.001,3517.2,3516.5,0.53305]
[1754120849031,0.001,3517.2,3516.6,0.4644]
[1754120849597,0.4605,3517.2,3516.6,0.4644]
[1754120849801,0.4328,3517.1,3516.3,0.4644]
[1754120850127,0.4595,3517.0,3516.3,4.8644]
[1754120850328,0.4595,3517.0,3516.4,0.57966]
[1754120850887,0.4328,3516.9,3516.2,3.0]
[1754120851114,0.4595,3516.8,3516.2,3.0]
[1754120851705,0.4595,3516.8,3516.2,3.4644]
[1754120852022,0.001,3517.2,3516.3,0.4644]
[1754120852222,0.001,3517.2,3516.3,0.9305]
[1754120852426,0.001,3517.2,3516.4,0.83295]
[1754120852593,0.4605,3517.2,3516.4,0.83295]
[1754120853089,0.4605,3517.2,3516.5,0.4644]
[1754120853303,0.001,3517.2,3516.6,0.4661]
[1754120853507,0.001,3517.2,3516.7,0.640745]
[1754120854128,0.001,3517.2,3516.8,0.4644]
[1754120854421,0.001,3517.2,3516.8,0.6068]
[1754120854593,0.001,3517.2,3516.9,0.4644]
[1754120854988,0.001,3517.2,3517.0,0.95893332]
[1754120855194,0.001,3517.2,3517.0,0.9305]
[1754120855403,0.001,3517.2,3517.1,0.9305]
[1754120855607,0.001,3517.2,3517.1,2.63359204]
[1754120857729,0.001,3517.2,3517.1,2.49119204]
[1754120858049,0.02327,3517.9,3517.1,2.63359204]
[1754120858192,0.02327,3517.9,3517.5,14.67642041]
[1754120858406,0.02327,3517.9,3517.8,0.1424]
[1754120859030,0.02327,3517.9,3517.8,0.6068]
[1754120859312,0.02327,3517.9,3517.8,1.0729]
[1754120860433,0.02327,3517.9,3517.8,0.1424]
[1754120862543,0.91557,3517.9,3517.8,0.1424]
[1754120867529,0.91557,3517.9,3517.6,0.002]
[1754120867857,0.8923,3517.8,3517.6,0.1444]
[1754120868355,0.02327,3517.9,3517.6,0.002]
[1754120868561,0.02327,3517.9,3517.7,0.1424]
[1754120868865,0.8923,3517.8,3517.7,0.1424]
[1754120869078,0.8923,3517.8,3517.6,0.002]
[1754120869221,0.568667,3517.9,3517.6,0.002]
[1754120869222,0.711067,3517.9,3517.6,0.002]
[1754120869416,0.8923,3517.7,3517.6,0.002]
[1754120870055,1.0526367,3517.7,3517.6,0.002]
[1754120870254,1.1950367,3517.7,3517.6,0.002]
[1754120871162,1.0526367,3517.7,3517.6,0.002]
[1754120871327,0.8923,3517.7,3517.6,0.002]
[1754120872364,0.001,3518.3,3517.6,11.00987921]
[1754120872660,0.39707942,3521.5,3518.1,3.0]
[1754120872661,0.4588,3519.5,3518.1,3.0]
[1754120872875,0.118,3519.9,3519.2,0.1424]
[1754120872876,0.1424,3519.7,3519.2,0.1424]
[1754120873082,0.8985,3519.6,3519.2,0.1424]
[1754120873373,0.4588,3519.5,3519.2,0.1424]
[1754120873778,0.8985,3519.4,3519.2,0.1424]
[1754120873963,0.4397,3519.4,3519.2,0.1424]
[1754120874279,0.8985,3519.4,3519.2,0.1424]
[1754120874838,0.5821,3519.7,3519.2,0.1424]
[1754120875152,0.8985,3519.6,3519.2,0.1424]
[1754120875465,0.8985,3519.5,3519.2,0.1424]
[1754120876488,0.4588,3519.4,3519.2,0.1424]
[1754120877282,0.4588,3519.4,3518.6,0.4482]
[1754120877283,0.4588,3519.3,3518.6,0.4482]
[1754120877466,0.8985,3519.3,3519.1,0.1424]
[1754120878737,0.81651,3519.7,3518.3,1.30234]
[1754120878738,0.8985,3519.2,3518.3,1.30234]
[1754120879057,0.8985,3519.2,3519.0,0.1424]
[1754120879258,0.8985,3519.1,3519.0,0.1424]
[1754120880258,0.8985,3519.1,3518.3,0.4798]
[1754120880458,0.4397,3519.1,3518.7,0.1424]
[1754120880669,0.8985,3519.0,3518.7,0.1424]
[1754120880886,0.67411,3519.7,3518.5,0.1424]
[1754120881191,0.4588,3519.2,3518.8,0.1424]
[1754120881390,0.8985,3519.1,3518.8,0.1424]
[1754120881550,0.1424,3519.3,3518.8,0.1424]
[1754120881752,0.4588,3519.0,3518.8,0.1424]
[1754120881964,0.8985,3518.9,3518.8,0.1424]
[1754120882345,0.8985,3518.9,3518.3,0.4798]
[1754120882658,0.4397,3518.9,3518.6,0.1424]
[1754120882858,0.4588,3518.8,3518.5,0.1424]
[1754120883077,0.8985,3518.8,3518.5,0.1424]
[1754120883288,0.8985,3518.7,3518.5,0.1424]
[1754120883473,0.4588,3518.6,3518.5,0.1424]
[1754120883872,0.4588,3518.9,3518.5,0.1424]
[1754120884954,0.4397,3518.8,3518.5,0.1424]
[1754120885150,0.8985,3518.7,3518.5,0.1424]
[1754120885352,0.1424,3519.1,3518.5,0.1424]
[1754120885597,4.5794,3519.1,3518.5,0.6222]
[1754120885894,0.1424,3519.0,3518.5,0.6222]
[1754120886260,0.6012,3519.0,3518.5,0.6222]
[1754120886684,0.4588,3518.9,3518.5,0.1424]
[1754120886851,1.712,3519.2,3518.5,0.6222]
[1754120887054,4.436,3519.1,3518.5,0.928]
[1754120887250,4.435,3519.1,3518.7,0.1424]
[1754120887451,4.435,3519.1,3518.7,0.6222]
[1754120887900,4.435,3519.1,3518.8,0.928]
[1754120888059,4.435,3519.1,3518.8,0.4798]
[1754120888260,4.435,3519.1,3518.7,0.1424]
[1754120888704,4.433,3519.1,3518.8,0.4798]
[1754120889086,0.001,3518.9,3518.8,0.4482]
[1754120889409,0.001,3518.9,3518.8,2.12319005]
[1754120889589,0.001,3518.9,3518.8,2.26559005]
[1754120889908,0.001,3518.9,3518.8,2.74539005]
[1754120890413,0.001,3518.9,3518.8,2.29719005]
[1754120890918,0.001,3518.9,3518.8,1.81739005]
[1754120891091,0.001,3518.9,3518.8,0.1424]
[1754120891876,0.001,3518.9,3518.8,0.4798]
[1754120892080,0.001,3518.9,3518.8,0.6222]
[1754120892278,0.4598,3518.9,3518.8,0.1424]
[1754120892480,0.001,3518.9,3518.8,0.1424]
[1754120892902,0.001,3518.9,3518.8,0.6222]
[1754120893226,0.001,3518.9,3518.8,0.1424]
[1754120893377,0.4598,3518.9,3518.8,0.1424]
[1754120893721,0.8995,3518.9,3518.8,0.1424]
[1754120895079,0.8995,3518.9,3517.8,22.09995449]
[1754120895276,0.8995,3518.9,3518.7,0.1424]
[1754120895277,0.4588,3518.8,3518.7,0.1424]
[1754120895919,0.4407,3518.9,3518.7,0.1424]
[1754120895920,0.001,3518.9,3518.7,0.1424]
[1754120896392,0.8995,3518.9,3518.7,0.1424]
[1754120896597,0.001,3518.9,3518.7,0.1424]
[1754120897879,0.001,3518.9,3518.8,0.4798]
[1754120898284,0.001,3518.9,3518.8,1.17145113]
[1754120898599,0.001,3518.9,3518.8,2.09945113]
[1754120898919,0.001,3518.9,3518.8,1.17145113]
[1754120899127,0.001,3518.9,3518.7,0.1424]
[1754120899419,0.001,3518.9,3518.8,0.4798]
[1754120899689,0.4588,3520.2,3518.9,0.55]
[1754120899832,0.4588,3520.0,3519.0,12.02031132]
[1754120900035,0.4397,3519.9,3519.0,11.09231132]
[1754120900199,4.9188,3520.2,3519.4,11.09231132]
[1754120900398,0.4588,3520.2,3519.5,0.4798]
[1754120900636,4.9218,3520.2,3519.5,0.4798]
[1754120900817,0.4588,3520.2,3519.5,0.4798]
[1754120901896,0.14325865,3521.4,3519.5,0.4798]
[1754120902094,1.95596581,3521.3,3519.6,0.4299]
[1754120902297,4.461,3521.2,3519.6,0.4299]
[1754120902497,0.9469,3521.1,3519.7,0.4942]
[1754120902696,3.9469,3521.1,3519.8,0.4299]
[1754120902929,5.10869658,3521.0,3519.9,0.4942]
[1754120903140,5.10769658,3521.0,3520.0,0.4299]
[1754120903297,5.10869658,3521.0,3520.1,0.4942]
[1754120903494,5.10869658,3521.0,3520.2,0.4299]
[1754120903697,5.10869658,3521.0,3520.3,0.4942]
[1754120905012,4.467,3521.0,3520.3,0.4942]
[1754120905212,4.464,3521.1,3520.3,0.4942]
[1754120905454,4.9461,3521.1,3520.3,0.4942]
[1754120906319,0.9469,3521.0,3520.3,0.4942]
[1754120906503,0.4821,3520.9,3520.1,0.4942]
[1754120906704,0.4648,3520.8,3519.8,0.4299]
[1754120906903,0.9469,3520.8,3519.9,0.86494102]
[1754120907149,0.9469,3520.8,3520.0,0.9241]
[1754120907326,0.9469,3520.8,3520.1,0.4942]
[1754120907726,0.4821,3520.7,3520.1,0.4942]
[1754120908031,0.9469,3520.7,3519.8,0.4942]
[1754120908201,0.4821,3520.6,3519.8,0.4942]
[1754120908612,1.00906581,3521.3,3519.8,0.4942]
[1754120908801,0.9469,3520.7,3519.8,0.4942]
[1754120909003,0.4821,3520.6,3519.9,3.0]
[1754120909810,0.4648,3520.5,3519.9,3.0]
[1754120910038,0.4648,3520.5,3520.3,0.1424]
[1754120910204,0.1424,3520.9,3520.3,0.1424]
[1754120910205,0.9469,3520.4,3520.3,0.1424]
[1754120911042,0.9469,3520.4,3519.6,0.4942]
[1754120911245,0.9469,3520.4,3519.6,2.24941844]
[1754120911536,0.4821,3520.3,3520.2,0.1424]
[1754120911703,0.9469,3520.3,3520.2,0.1424]
[1754120911904,0.9469,3520.3,3519.3,0.4942]
[1754120912151,4.461,3520.5,3518.5,7.381]
[1754120912152,0.9469,3520.2,3519.8,0.1424]
[1754120912505,0.4648,3520.1,3519.8,0.1424]
[1754120912705,0.9469,3520.0,3519.8,0.1424]
[1754120912907,0.9469,3520.5,3519.8,0.4942]
[1754120913111,0.4821,3520.5,3520.1,0.1424]
[1754120913307,5.4049,3520.4,3519.1,1.19462223]
[1754120913511,0.9469,3520.3,3519.9,0.1424]
[1754120913737,0.9469,3520.2,3519.9,0.1424]
[1754120914245,0.4821,3520.1,3519.9,0.1424]
[1754120914607,0.1424,3520.4,3519.9,0.6366]
[1754120914806,0.001,3520.8,3520.0,0.6366]
[1754120914807,4.459,3520.6,3520.0,0.6366]
[1754120915009,4.459,3520.6,3520.2,0.1424]
[1754120915204,0.9469,3520.5,3520.2,0.1424]
[1754120915440,4.459,3520.7,3520.2,0.1424]
[1754120915644,0.4821,3520.6,3520.2,0.1424]
[1754120915945,0.4648,3520.6,3520.2,0.1424]
[1754120916136,0.4821,3520.5,3520.2,0.1424]
[1754120916308,0.9469,3520.5,3520.2,0.1424]
[1754120916938,0.4821,3520.5,3520.2,0.1424]
[1754120917502,0.9469,3520.5,3520.2,0.1424]
[1754120918104,4.457,3520.6,3520.2,0.1424]
[1754120918308,4.457,3520.6,3520.2,0.6366]
[1754120918519,0.4821,3520.5,3520.2,0.1424]
[1754120918724,0.4821,3520.4,3520.2,0.1424]
[1754120919078,0.9469,3520.4,3520.2,0.1424]
[1754120919550,0.9469,3520.3,3520.2,0.1424]
[1754120919747,3.19929,3520.3,3519.3,3.9241]
[1754120919957,4.457,3520.6,3519.4,0.9241]
[1754120919958,6.169,3520.6,3519.4,0.9241]
[1754120920155,0.9469,3520.5,3520.2,0.1424]
[1754120920670,0.9469,3520.4,3520.2,0.1424]
[1754120921133,0.4821,3520.3,3520.2,0.1424]
[1754120921730,0.9469,3520.3,3520.2,0.1424]
[1754120922227,1.65849,3520.3,3520.2,0.1424]
[1754120922432,1.65849,3520.3,3520.0,0.1424]
[1754120922632,0.71159,3520.3,3520.0,0.1424]
[1754120922850,0.9469,3520.2,3520.0,0.1424]
[1754120923442,0.4821,3520.2,3520.0,0.1424]
[1754120924665,4.458,3520.3,3520.0,0.1424]
[1754120924868,4.458,3520.3,3519.8,11.57855035]
[1754120925068,4.9401,3520.3,3520.2,0.1424]
[1754120925480,5.4049,3520.3,3520.2,0.1424]
[1754120926257,0.001,3520.8,3520.2,11.22675035]
[1754120926456,0.001,3520.8,3520.6,11.08435035]
[1754120926668,0.001,3520.8,3520.7,0.1424]
[1754120928306,0.4831,3520.8,3520.7,0.1424]
[1754120929747,0.001,3520.8,3520.7,0.6366]
[1754120929949,0.001,3520.8,3520.7,2.23859503]
[1754120930256,0.001,3520.8,3520.7,13.32294538]
[1754120930568,0.001,3520.8,3520.7,12.89304538]
[1754120930760,0.001,3520.8,3520.7,13.32294538]
[1754120931791,0.001,3520.8,3520.7,2.23859503]
[1754120933398,0.001,3520.8,3520.7,1.80869503]
[1754120934148,0.001,3520.8,3520.7,2.26839503]
[1754120934960,0.001,3520.8,3520.7,1.79659503]
[1754120936288,0.001,3520.8,3520.7,13.11345092]
[1754120936469,0.001,3520.8,3520.7,1.31449503]
[1754120937962,0.001,3520.8,3520.7,1.79659503]
[1754120939459,0.001,3520.8,3520.7,2.25629503]
[1754120939658,0.001,3520.8,3520.7,2.28469847]
[1754120939998,0.001,3520.8,3520.7,2.25629503]
[1754120940196,0.1416,3521.6,3520.7,1.86449503]
[1754120940356,0.1416,3523.4,3521.6,3.0]
[1754120940553,0.14261313,3523.8,3521.6,3.0]
[1754120940554,0.4942,3522.6,3522.1,10.85715589]
[1754120940766,0.512,3523.3,3521.8,3.0]
[1754120940966,0.9293,3522.5,3522.4,0.1416]
[1754120941166,0.4942,3522.7,3522.4,0.1416]
[1754120941372,0.4942,3522.7,3521.8,3.0]
[1754120941373,0.9293,3522.6,3521.8,3.0]
[1754120941574,0.4942,3522.5,3522.4,0.1416]
[1754120942182,0.9293,3522.5,3521.6,3.0]
[1754120942388,0.4942,3522.4,3522.3,0.1416]
[1754120942576,0.9293,3522.4,3522.3,0.1416]
[1754120943098,0.9293,3522.4,3521.6,3.0]
[1754120943401,0.9293,3522.3,3521.9,0.1416]
[1754120943698,0.9293,3522.2,3521.1,16.70972789]
[1754120943996,0.89993,3522.1,3521.6,0.1416]
[1754120944298,0.14418571,3523.8,3522.0,10.85715589]
[1754120944466,0.4942,3522.5,3522.2,0.1416]
[1754120944667,0.9293,3522.4,3522.2,0.1416]
[1754120945199,0.4942,3522.6,3521.8,0.4821]
[1754120945502,0.4942,3522.6,3522.3,0.1416]
[1754120945795,0.4942,3522.5,3522.3,0.1416]
[1754120946000,0.55969,3522.6,3522.3,0.1416]
[1754120946163,0.9293,3522.4,3521.3,10.85715589]
[1754120946362,0.4351,3522.4,3522.1,0.1416]
[1754120946687,0.9293,3522.3,3522.1,0.1416]
[1754120946887,0.9293,3522.2,3522.1,0.1416]
[1754120947087,1.0709,3522.2,3521.7,0.1416]
[1754120947288,0.9293,3522.2,3521.7,0.1416]
[1754120947489,0.9293,3522.1,3522.0,0.1416]
[1754120947997,0.9293,3522.1,3521.2,11.31685589]
[1754120948200,0.4942,3522.0,3521.8,0.1416]
[1754120948404,0.9293,3522.0,3521.8,0.1416]
[1754120948703,0.163059,3522.3,3521.9,0.6237]
[1754120949072,0.163059,3522.3,3522.1,0.1416]
[1754120949572,0.657259,3522.3,3522.1,0.1416]
[1754120950404,1.4476259,3522.2,3520.9,0.4821]
[1754120950589,5.5375259,3522.2,3522.0,0.1416]
[1754120950793,0.4942,3522.1,3522.0,0.1416]
[1754120950992,1.54286849,3522.1,3522.0,0.1416]
[1754120951380,1.54286849,3522.1,3520.8,0.4821]
[1754120951585,0.9293,3522.0,3521.5,0.1416]
[1754120952231,0.9293,3521.9,3521.5,0.1416]
[1754120952395,0.1416,3521.8,3521.3,0.1416]
[1754120952592,0.9293,3521.7,3521.3,0.1416]
[1754120952798,0.9293,3521.6,3521.3,0.1416]
[1754120952975,0.1416,3521.8,3521.3,0.1416]
[1754120953171,0.9293,3521.7,3521.3,0.1416]
[1754120953377,0.9293,3521.6,3520.7,10.85715589]
[1754120953690,0.9293,3521.5,3521.2,0.1416]
[1754120953894,0.9293,3521.4,3520.5,0.4821]
[1754120954094,0.9293,3521.4,3521.0,0.1424]
[1754120954294,1.47483,3521.3,3520.0,0.9418]
[1754120954495,0.1416,3521.2,3520.7,0.1424]
[1754120954699,0.9293,3521.1,3520.7,0.1424]
[1754120954889,4.526,3521.1,3520.7,0.4821]
[1754120955090,4.526,3521.1,3520.9,0.1424]
[1754120955676,4.525,3521.3,3520.9,0.1424]
[1754120956091,4.525,3521.3,3521.0,0.4821]
[1754120956813,0.4942,3521.7,3520.9,0.4597]
[1754120956986,4.523,3521.6,3521.2,0.1416]
[1754120957425,0.9293,3521.5,3521.2,0.1416]
[1754120957801,0.4942,3521.5,3521.2,0.1416]
[1754120958006,4.523,3521.6,3521.2,0.1416]
[1754120958331,6.01169,3521.6,3521.2,0.1416]
[1754120958507,0.9293,3521.5,3520.5,0.4821]
[1754120958831,0.4942,3521.4,3521.0,0.1424]
[1754120959006,1.109529,3521.4,3521.0,0.1424]
[1754120959211,0.4942,3521.3,3521.0,0.1424]
[1754120959406,0.4942,3521.3,3520.7,0.4821]
[1754120959407,5.0172,3521.6,3520.6,0.4597]
[1754120959620,0.1416,3521.7,3521.2,0.1416]
[1754120959803,11.31327,3524.0,3521.6,3.0]
[1754120959804,0.001,3522.3,3521.6,3.0]
[1754120960017,0.004,3523.8,3522.3,3.0]
[1754120960217,0.004,3523.8,3523.4,10.85715589]
[1754120960532,0.004,3523.8,3523.3,10.85715589]
[1754120961138,0.004,3523.8,3523.4,0.4821]
[1754120961435,0.004,3523.8,3523.7,10.85715589]
[1754120961820,0.004,3523.8,3523.7,11.78145589]
[1754120962005,0.004,3523.8,3523.5,5.0558]
[1754120962217,0.004,3523.8,3523.7,10.85715589]
[1754120962806,0.004,3523.8,3523.5,4.594]
[1754120962993,0.004,3523.8,3523.4,0.4635]
[1754120963221,0.004,3523.8,3522.8,3.0]
[1754120963222,0.004,3523.8,3523.5,4.597]
[1754120963418,0.004,3523.8,3523.3,4.596]
[1754120963732,0.004,3523.8,3523.2,5.0568]
[1754120963907,0.45163965,3523.9,3523.2,5.0558]
[1754120964110,0.45163965,3523.9,3523.2,0.4608]
[1754120964321,0.90503965,3523.9,3523.0,4.595]
[1754120964729,0.90503965,3523.9,3523.0,0.853008]
[1754120964919,0.4534,3523.9,3522.9,5.0528]
[1754120965123,0.4534,3523.9,3522.6,0.4635]
[1754120965436,0.4534,3523.9,3522.7,0.853008]
[1754120965604,0.4534,3523.9,3522.6,0.4608]
[1754120965806,0.4534,3523.9,3522.4,0.4635]
[1754120965807,0.4534,3523.9,3522.4,5.5173]
[1754120966007,0.4702,3523.8,3522.4,5.5173]
[1754120966210,0.4702,3523.8,3522.3,7.6802]
[1754120966211,0.4534,3523.7,3522.3,7.6802]
[1754120966439,30.0,3523.5,3521.4,0.4608]
[1754120966610,9.02650375,3523.6,3521.2,0.4635]
[1754120966611,0.55,3523.2,3521.2,0.4635]
[1754120966814,0.55,3523.0,3521.2,0.4635]
[1754120967137,1.80809541,3522.9,3521.3,0.4608]
[1754120967319,0.23580954,3522.8,3521.3,0.4608]
[1754120967506,1.15940954,3522.8,3521.3,0.4608]
[1754120967712,0.9236,3522.7,3521.3,0.4608]
[1754120968020,5.5166,3522.6,3521.3,0.4608]
[1754120968226,0.9236,3522.5,3520.9,0.4608]
[1754120968422,1.47526,3522.4,3520.9,0.4608]
[1754120968622,0.9236,3522.3,3520.9,0.4608]
[1754120968813,0.55166,3522.4,3520.9,0.4608]
[1754120969013,0.9236,3522.2,3520.9,0.4608]
[1754120969332,0.9236,3522.1,3520.9,0.4608]
[1754120969637,0.9236,3522.0,3519.8,18.51968391]
[1754120969930,0.9236,3521.9,3520.6,0.4608]
[1754120970236,0.1416,3521.9,3521.4,0.1416]
[1754120970535,0.1416,3521.9,3520.7,0.49190344]
[1754120970536,0.6118,3522.4,3521.8,0.1416]
[1754120970710,0.4702,3522.4,3521.8,0.1416]
[1754120970915,3.0,3522.9,3522.1,0.1416]
[1754120970916,0.1416,3522.6,3522.1,0.1416]
[1754120971111,0.4702,3524.8,3522.6,3.0]
[1754120971317,0.99,3525.0,3523.3,18.51968391]
[1754120971623,0.6118,3524.7,3523.3,18.51968391]
[1754120971800,0.6118,3524.7,3523.4,0.95268167]
[1754120972006,0.6118,3524.7,3523.4,0.9243]
[1754120972208,0.6118,3524.7,3523.3,18.51968391]
[1754120972406,0.6118,3524.7,3523.5,0.9243]
[1754120972732,0.6118,3524.7,3523.6,2.41239839]
[1754120972943,0.6118,3524.7,3523.6,0.9243]
[1754120973111,0.6118,3524.7,3523.7,0.9243]
[1754120973518,0.6118,3524.7,3523.8,0.9243]
[1754120974048,0.6118,3524.7,3523.3,3.0]
[1754120974049,0.9236,3524.9,3523.9,0.9243]
[1754120975844,0.9236,3524.9,3523.9,0.4608]
[1754120976438,0.4534,3524.9,3523.9,0.4608]
[1754120976737,0.4702,3524.6,3523.9,0.4608]
[1754120976941,0.9236,3524.6,3523.5,0.9243]
[1754120977145,0.9236,3524.6,3523.6,0.55903]
[1754120977641,0.9236,3524.6,3523.4,0.4635]
[1754120977831,0.9236,3524.6,3523.7,0.4608]
[1754120978199,0.001,3524.4,3523.7,0.4608]
[1754120978906,0.001,3524.4,3523.8,0.4608]
[1754120979541,0.001,3524.4,3522.6,3.4635]
[1754120979737,0.94687,3524.0,3523.0,5.1208]
[1754120979903,0.49347,3524.0,3523.1,0.9243]
[1754120987042,0.49347,3524.0,3522.3,5.45306359]
[1754120987043,0.4702,3523.9,3522.3,5.45306359]
[1754120987228,0.9236,3523.9,3522.4,0.9243]
[1754120987436,0.9236,3523.8,3522.5,0.4608]
[1754120987637,0.9236,3523.7,3522.6,0.4608]
[1754120987841,0.02327,3524.0,3522.6,0.4608]
[1754120988052,0.9236,3523.6,3522.6,0.4608]
[1754120988212,0.4702,3523.5,3522.6,0.4608]
[1754120988867,0.4534,3523.4,3522.6,0.4608]
[1754120989232,0.4702,3523.3,3522.4,0.4635]
[1754120990612,0.4702,3523.3,3521.8,0.21364908]
[1754120990613,0.4534,3523.2,3521.9,4.631]
[1754120990952,0.4702,3523.1,3522.0,3.9243]
[1754120991147,0.4702,3523.1,3522.1,0.4608]
[1754120993951,0.4553,3523.0,3522.1,0.4608]
[1754120994358,0.4508,3522.9,3522.1,0.4608]
[1754120995720,0.4508,3523.2,3522.1,0.4608]
[1754120996058,0.4508,3523.2,3522.2,0.79298]
[1754120996220,0.4508,3523.2,3521.8,5.83945225]
[1754120996552,0.4508,3523.2,3521.9,0.9425]
[1754120996753,0.4508,3523.2,3522.0,0.9425]
[1754120996952,0.4508,3523.2,3522.1,0.4469]
[1754120997162,0.4508,3523.2,3522.1,0.9425]
[1754120997467,0.4508,3523.2,3522.2,0.4956]
[1754120998455,0.4553,3523.1,3522.2,0.4956]
[1754120998618,0.9061,3523.1,3522.2,0.4956]
[1754120999122,0.9061,3523.0,3522.2,0.55565]
[1754120999318,0.4508,3522.9,3522.1,0.4956]
[1754120999523,0.4553,3522.8,3521.9,0.4956]
[1754120999771,0.4508,3522.7,3521.7,0.4956]
[1754121000072,0.4553,3522.6,3521.8,1.44840684]
[1754121000234,0.4553,3522.6,3521.8,1.94400684]
[1754121001122,0.9061,3522.6,3521.8,1.44840684]
[1754121001334,0.4508,3522.5,3521.8,0.002]
[1754121001553,0.4508,3522.5,3521.8,0.4976]
[1754121002521,0.4508,3522.5,3521.8,0.002]
[1754121002727,0.4553,3522.4,3521.8,0.002]
[1754121003151,0.4508,3522.3,3521.8,0.002]
[1754121003553,1.712,3523.2,3521.8,0.002]
[1754121003762,0.4508,3522.2,3521.8,0.002]
[1754121003926,0.9061,3522.2,3521.8,0.002]
[1754121004262,0.4508,3522.1,3521.8,0.002]
[1754121004461,0.9061,3522.1,3521.8,0.002]
[1754121004633,0.4508,3522.0,3521.8,0.002]
[1754121005624,0.4553,3522.1,3521.8,0.002]
[1754121005843,0.4508,3522.3,3521.8,0.002]
[1754121006262,0.9061,3522.2,3521.8,0.002]
[1754121006655,0.9061,3522.1,3521.8,0.002]
[1754121007264,0.9061,3522.0,3521.8,0.002]
[1754121007562,0.4508,3522.5,3521.8,0.002]
[1754121007767,0.9061,3522.5,3521.8,0.002]
[1754121008359,1.90032,3522.9,3521.8,0.002]
[1754121008360,0.4508,3522.4,3521.8,0.002]
[1754121008554,0.9061,3522.4,3521.8,0.002]
[1754121008929,0.4553,3522.4,3521.8,0.002]
[1754121009153,0.4508,3522.3,3521.8,0.002]
[1754121009759,0.4553,3522.2,3521.8,0.002]
[1754121010141,0.190032,3522.8,3521.8,0.002]
[1754121010347,0.9061,3522.1,3521.8,0.002]
[1754121010752,0.2090352,3522.7,3521.8,0.002]
[1754121010952,0.9061,3522.0,3521.8,0.002]
[1754121011461,0.2090352,3522.7,3521.8,0.002]
[1754121011462,0.9061,3521.9,3521.8,0.002]
[1754121016548,3.1681,3521.9,3521.8,0.002]
[1754121016849,4.08381,3521.9,3521.8,0.002]
[1754121017842,7.29288572,3521.9,3521.8,0.002]
[1754121021881,14.31288572,3521.9,3521.8,0.002]
[1754121022469,18.87488572,3521.9,3521.8,0.002]
[1754121022667,18.73328572,3521.9,3521.8,0.002]
[1754121023291,25.73328572,3521.9,3521.8,0.002]
[1754121023858,55.73328572,3521.9,3521.8,0.002]
[1754121024181,51.17128572,3521.9,3521.8,0.002]
[1754121024380,55.74428572,3521.9,3521.8,0.002]
[1754121024582,25.74428572,3521.9,3521.8,0.002]
[1754121024782,25.74528572,3521.9,3521.8,0.002]
[1754121025859,21.17128572,3521.9,3521.8,0.002]
[1754121026062,25.74328572,3521.9,3521.8,0.002]
[1754121028893,21.62411,3521.9,3521.8,0.002]
[1754121030080,17.05611,3521.9,3521.8,0.002]
[1754121030488,21.62011,3521.9,3521.8,0.002]
[1754121030797,21.06911,3521.9,3521.8,0.9098]
[1754121031010,20.295,3521.9,3521.8,0.9098]
[1754121031174,20.295,3521.9,3521.8,0.4671]